fUSD/lending_fUSD_20250213
["ID","MTS","AMOUNT","RATE_DAILY","PERIOD"]
[352920041,1739424642911,-188.594211,0.00016438,2]
[352920042,1739424642920,-500.0,0.00016438,2]
[352920043,1739424642929,-1148.31,0.00016438,2]
[352920044,1739424642940,-500.0,0.00016438,2]
[352920045,1739424642950,-500.0,0.00016438,2]
[352920046,1739424642959,-171.195764,0.00016438,2]
[352920047,1739424642968,-500.0,0.00016438,2]
[352920048,1739424642979,-500.0,0.00016438,2]
[352920049,1739424642988,-500.0,0.00016438,2]
[352920050,1739424642997,-500.0,0.00016438,2]
[352920051,1739424643006,-500.0,0.00016438,2]
[352920052,1739424643016,-152.015606,0.00016438,2]
[352920053,1739424643025,-500.0,0.00016438,2]
[352920054,1739424643034,-500.0,0.00016438,2]
[352920055,1739424643044,-799.13,0.00016438,2]
[352920056,1739424643053,-1089.4,0.00016438,2]
[352920057,1739424643063,-151.0,0.00016438,2]
[352920058,1739424643073,-151.0,0.00016438,2]
[352920060,1739424643083,-299.141847,0.00016438,2]
[352920061,1739424643092,-500.0,0.00016438,2]
[352920062,1739424643101,-500.0,0.00016438,2]
[352920063,1739424643111,-502.06242696,0.00016438,2]
[352920064,1739424643121,-500.0,0.00016438,2]
[352920065,1739424643130,-500.0,0.00016438,2]
[352920066,1739424643140,-502.2019396,0.00016438,2]
[352920067,1739424643149,-1304.45,0.00016438,2]
[352920068,1739424643158,-501.73446471,0.00016438,2]
[352920069,1739424643167,-1207.36,0.00016438,2]
[352920070,1739424643177,-500.0,0.00016438,2]
[352920071,1739424643187,-501.14658812,0.00016438,2]
[352920073,1739424643196,-500.0,0.00016438,2]
[352920074,1739424643206,-500.0,0.00016438,2]
[352920075,1739424643214,-500.0,0.00016438,2]
[352920076,1739424643223,-500.0,0.00016438,2]
[352920077,1739424643232,-500.0,0.00016438,2]
[352920078,1739424643242,-500.0,0.00016438,2]
[352920079,1739424643251,-787.37,0.00016438,2]
[352920080,1739424643261,-505.1164005,0.00016438,2]
[352920081,1739424643271,-500.0,0.00016438,2]
[352920082,1739424643280,-500.0,0.00016438,2]
[352920083,1739424643291,-1027.45,0.00016438,2]
[352920084,1739424643301,-500.0,0.00016438,2]
[352920085,1739424643311,-500.0,0.00016438,2]
[352920086,1739424643320,-500.0,0.00016438,2]
[352920087,1739424643330,-1254.01,0.00016438,2]
[352920088,1739424643339,-500.0,0.00016438,2]
[352920089,1739424643349,-561.17,0.00016438,2]
[352920090,1739424643358,-500.0,0.00016438,2]
[352920091,1739424643368,-500.0,0.00016438,2]
[352920092,1739424643377,-500.0,0.00016438,2]
[352920093,1739424643387,-834.47,0.00016438,2]
[352920094,1739424643397,-500.0,0.00016438,2]
[352920095,1739424643407,-500.0,0.00016438,2]
[352920096,1739424643416,-325.95978333,0.00016438,2]
[352920097,1739424643427,-500.0,0.00016438,2]
[352920098,1739424643436,-500.80341228,0.00016438,2]
[352920099,1739424643446,-500.0,0.00016438,2]
[352920100,1739424643456,-508.56178471,0.00016438,2]
[352920101,1739424643465,-500.0,0.00016438,2]
[352920102,1739424643475,-644.01,0.00016438,2]
[352920103,1739424643487,-500.0,0.00016438,2]
[352920104,1739424643496,-1300.42,0.00016438,2]
[352920105,1739424643505,-500.0,0.00016438,2]
[352920106,1739424643514,-500.0,0.00016438,2]
[352920107,1739424643524,-500.0,0.00016438,2]
[352920108,1739424643535,-153.160132,0.00016438,2]
[352920109,1739424643544,-500.0,0.00016438,2]
[352920110,1739424643554,-500.0,0.00016438,2]
[352920111,1739424643564,-300.0,0.00016438,2]
[352920112,1739424643574,-496.28432792,0.00016438,2]
[352920113,1739424643585,-500.0,0.00016438,2]
[352920114,1739424643595,-849.37,0.00016438,2]
[352920115,1739424643604,-500.0,0.00016438,2]
[352920116,1739424643613,-356.65366265,0.00016438,2]
[352920117,1739424643623,-500.0,0.00016438,2]
[352920118,1739424643634,-534.6903226,0.00016438,2]
[352920119,1739424643644,-500.0,0.00016438,2]
[352920120,1739424643654,-503.38419656,0.00016438,2]
[352920121,1739424643663,-1472.14,0.00016438,2]
[352920122,1739424643673,-500.0,0.00016438,2]
[352920123,1739424643683,-500.0,0.00016438,2]
[352920124,1739424643693,-606.17239037,0.00016438,2]
[352920125,1739424643703,-733.06,0.00016438,2]
[352920126,1739424643715,-500.0,0.00016438,2]
[352920127,1739424643725,-152.015607,0.00016438,2]
[352920128,1739424643734,-500.0,0.00016438,2]
[352920129,1739424643743,-500.0,0.00016438,2]
[352920130,1739424643753,-512.00067955,0.00016438,2]
[352920131,1739424643762,-519.41,0.00016438,2]
[352920132,1739424643772,-864.48,0.00016438,2]
[352920133,1739424643782,-613.07,0.00016438,2]
[352920134,1739424643792,-500.0,0.00016438,2]
[352920135,1739424643801,-613.58,0.00016438,2]
[352920136,1739424643812,-500.0,0.00016438,2]
[352920137,1739424643822,-500.0,0.00016438,2]
[352920138,1739424643833,-506.65800186,0.00016438,2]
[352920139,1739424643843,-500.0,0.00016438,2]
[352920140,1739424643853,-811.9,0.00016438,2]
[352920141,1739424643868,-1370.31,0.00016438,2]
[352920142,1739424643877,-772.11,0.00016438,2]
[352920143,1739424643887,-500.0,0.00016438,2]
[352920144,1739424643899,-331.37355912,0.00016438,2]
[352920145,1739424643909,-500.0,0.00016438,2]
[352920146,1739424643919,-500.0,0.00016438,2]
[352920147,1739424643929,-501.8990171,0.00016438,2]
[352920148,1739424643942,-500.0,0.00016438,2]
[352920149,1739424643955,-500.0,0.00016438,2]
[352920150,1739424643965,-505.38850442,0.00016438,2]
[352920151,1739424643975,-500.0,0.00016438,2]
[352920152,1739424643984,-500.0,0.00016438,2]
[352920153,1739424643994,-500.0,0.00016438,2]
[352920154,1739424644004,-500.0,0.00016438,2]
[352920155,1739424644014,-1809.59,0.00016438,2]
[352920156,1739424644023,-508.33,0.00016438,2]
[352920157,1739424644033,-171.195764,0.00016438,2]
[352920158,1739424644043,-500.0,0.00016438,2]
[352920159,1739424644053,-718.42,0.00016438,2]
[352920160,1739424644063,-500.0,0.00016438,2]
[352920161,1739424644073,-500.0,0.00016438,2]
[352920162,1739424644082,-506.25433786,0.00016438,2]
[352920163,1739424644092,-503.97429505,0.00016438,2]
[352920164,1739424644101,-500.0,0.00016438,2]
[352920165,1739424644111,-500.0,0.00016438,2]
[352920166,1739424644121,-500.0,0.00016438,2]
[352920167,1739424644131,-1126.89,0.00016438,2]
[352920168,1739424644141,-500.0,0.00016438,2]
[352920169,1739424644151,-500.0,0.00016438,2]
[352920170,1739424644161,-500.0,0.00016438,2]
[352920171,1739424644172,-500.0,0.00016438,2]
[352920172,1739424644182,-508.86,0.00016438,2]
[352920173,1739424644191,-500.0,0.00016438,2]
[352920174,1739424644202,-500.0,0.00016438,2]
[352920175,1739424644212,-503.04451138,0.00016438,2]
[352920176,1739424644222,-500.0,0.00016438,2]
[352920177,1739424644237,-500.0,0.00016438,2]
[352920178,1739424644255,-618.31,0.00016438,2]
[352920179,1739424644270,-500.0,0.00016438,2]
[352920180,1739424644280,-765.97,0.00016438,2]
[352920181,1739424644289,-704.64,0.00016438,2]
[352920182,1739424644300,-500.0,0.00016438,2]
[352920183,1739424644310,-500.0,0.00016438,2]
[352920184,1739424644320,-500.0,0.00016438,2]
[352920185,1739424644330,-500.0,0.00016438,2]
[352920186,1739424644339,-501.48922676,0.00016438,2]
[352920187,1739424644350,-197.60214299,0.00016438,2]
[352920188,1739424644359,-656.88,0.00016438,2]
[352920189,1739424644370,-500.0,0.00016438,2]
[352920190,1739424644381,-500.0,0.00016438,2]
[352920191,1739424644390,-500.0,0.00016438,2]
[352920192,1739424644400,-500.0,0.00016438,2]
[352920193,1739424644410,-1065.41,0.00016438,2]
[352920194,1739424644419,-1215.93,0.00016438,2]
[352920195,1739424644429,-500.0,0.00016438,2]
[352920196,1739424644440,-500.0,0.00016438,2]
[352920197,1739424644450,-500.0,0.00016438,2]
[352920198,1739424644460,-500.0,0.00016438,2]
[352920199,1739424644470,-500.0,0.00016438,2]
[352920200,1739424644480,-500.0,0.00016438,2]
[352920201,1739424644490,-500.0,0.00016438,2]
[352920202,1739424644500,-500.0,0.00016438,2]
[352920203,1739424644510,-500.0,0.00016438,2]
[352920204,1739424644520,-500.0,0.00016438,2]
[352920205,1739424644529,-500.0,0.00016438,2]
[352920206,1739424644539,-500.0,0.00016438,2]
[352920207,1739424644549,-500.0,0.00016438,2]
[352920208,1739424644558,-590.01,0.00016438,2]
[352920209,1739424644568,-500.0,0.00016438,2]
[352920210,1739424644578,-500.0,0.00016438,2]
[352920211,1739424644587,-500.0,0.00016438,2]
[352920212,1739424644597,-500.0,0.00016438,2]
[352920213,1739424644607,-724.45,0.00016438,2]
[352920214,1739424644617,-500.0,0.00016438,2]
[352920215,1739424644627,-328.24349436,0.00016438,2]
[352920216,1739424644636,-500.0,0.00016438,2]
[352920217,1739424644645,-500.0,0.00016438,2]
[352920218,1739424644655,-500.0,0.00016438,2]
[352920219,1739424644664,-500.0,0.00016438,2]
[352920220,1739424644675,-151.0,0.00016438,2]
[352920221,1739424644685,-500.0,0.00016438,2]
[352920222,1739424644695,-151.0,0.00016438,2]
[352920223,1739424644705,-1308.3,0.00016438,2]
[352920224,1739424644714,-151.0,0.00016438,2]
[352920225,1739424644725,-151.0,0.00016438,2]
[352920226,1739424644734,-151.0,0.00016438,2]
[352920227,1739424644743,-500.0,0.00016438,2]
[352920228,1739424644753,-151.0,0.00016438,2]
[352920229,1739424644763,-151.0,0.00016438,2]
[352920230,1739424644773,-151.0,0.00016438,2]
[352920231,1739424644782,-500.0,0.00016438,2]
[352920232,1739424644792,-500.0,0.00016438,2]
[352920233,1739424644802,-151.0,0.00016438,2]
[352920234,1739424644812,-151.0,0.00016438,2]
[352920235,1739424644822,-151.0,0.00016438,2]
[352920236,1739424644831,-151.0,0.00016438,2]
[352920237,1739424644841,-500.0,0.00016438,2]
[352920238,1739424644851,-500.0,0.00016438,2]
[352920239,1739424644862,-151.0,0.00016438,2]
[352920240,1739424644872,-151.0,0.00016438,2]
[352920241,1739424644883,-1090.13,0.00016438,2]
[352920242,1739424644895,-242.46559152,0.00016438,2]
[352920243,1739424644904,-500.0,0.00016438,2]
[352920244,1739424644920,-500.0,0.00016438,2]
[352920245,1739424644934,-500.0,0.00016438,2]
[352920246,1739424644952,-500.0,0.00016438,2]
[352920247,1739424644962,-500.56644236,0.00016438,2]
[352920248,1739424644973,-1089.31,0.00016438,2]
[352920249,1739424644984,-500.0,0.00016438,2]
[352920250,1739424644995,-539.13,0.00016438,2]
[352920251,1739424645004,-500.0,0.00016438,2]
[352920252,1739424645015,-504.40589379,0.00016438,2]
[352920253,1739424645026,-500.0,0.00016438,2]
[352920254,1739424645036,-500.0,0.00016438,2]
[352920255,1739424645046,-497.71336193,0.00016438,2]
[352920256,1739424645056,-500.0,0.00016438,2]
[352920257,1739424645067,-1612.61,0.00016438,2]
[352920258,1739424645076,-2443.64,0.00016438,2]
[352920259,1739424645086,-500.0,0.00016438,2]
[352920260,1739424645095,-500.0,0.00016438,2]
[352920261,1739424645104,-1298.2,0.00016438,2]
[352920262,1739424645114,-844.65,0.00016438,2]
[352920263,1739424645123,-500.0,0.00016438,2]
[352920264,1739424645132,-491.0,0.00016438,2]
[352920265,1739424645143,-2508.89,0.00016438,2]
[352920266,1739424645153,-500.0,0.00016438,2]
[352920267,1739424645162,-500.0,0.00016438,2]
[352920268,1739424645172,-2338.95,0.00016438,2]
[352920269,1739424645182,-500.0,0.00016438,2]
[352920270,1739424645192,-500.0,0.00016438,2]
[352920271,1739424645202,-500.0,0.00016438,2]
[352920272,1739424645212,-500.0,0.00016438,2]
[352920273,1739424645222,-500.0,0.00016438,2]
[352920274,1739424645231,-500.0,0.00016438,2]
[352920275,1739424645392,-500.0,0.00016438,2]
[352920276,1739424645404,-500.0,0.00016438,2]
[352920277,1739424645414,-500.0,0.00016438,2]
[352920278,1739424645424,-500.0,0.00016438,2]
[352920279,1739424645435,-500.0,0.00016438,2]
[352920280,1739424645445,-1147.63,0.00016438,2]
[352920281,1739424645456,-500.0,0.00016438,2]
[352920282,1739424645466,-500.0,0.00016438,2]
[352920283,1739424645475,-783.48,0.00016438,2]
[352920284,1739424645487,-500.0,0.00016438,2]
[352920285,1739424645497,-500.0,0.00016438,2]
[352920286,1739424645507,-500.0,0.00016438,2]
[352920287,1739424645517,-500.0,0.00016438,2]
[352920288,1739424645526,-151.0,0.00016438,2]
[352920289,1739424645536,-990.49,0.00016438,2]
[352920290,1739424645546,-151.0,0.00016438,2]
[352920291,1739424645556,-151.0,0.00016438,2]
[352920292,1739424645565,-500.0,0.00016438,2]
[352920293,1739424645574,-500.0,0.00016438,2]
[352920294,1739424645584,-151.0,0.00016438,2]
[352920295,1739424645594,-151.0,0.00016438,2]
[352920296,1739424645604,-151.0,0.00016438,2]
[352920297,1739424645614,-500.0,0.00016438,2]
[352920299,1739424645623,-151.0,0.00016438,2]
[352920300,1739424645632,-500.0,0.00016438,2]
[352920301,1739424645642,-585.79,0.00016438,2]
[352920302,1739424645651,-500.0,0.00016438,2]
[352920303,1739424645661,-500.0,0.00016438,2]
[352920304,1739424645670,-1767.86,0.00016438,2]
[352920306,1739424645680,-530.58592248,0.00016438,2]
[352920308,1739424645690,-1002.18,0.00016438,2]
[352920309,1739424645702,-500.0,0.00016438,2]
[352920310,1739424645711,-2161.29,0.00016438,2]
[352920311,1739424645720,-500.0,0.00016438,2]
[352920312,1739424645729,-500.0,0.00016438,2]
[352920313,1739424645739,-1346.54,0.00016438,2]
[352920315,1739424645748,-500.0,0.00016438,2]
[352920316,1739424645757,-1654.48,0.00016438,2]
[352920317,1739424645767,-512.78653908,0.00016438,2]
[352920318,1739424645776,-500.0,0.00016438,2]
[352920319,1739424645786,-500.0,0.00016438,2]
[352920320,1739424645795,-913.13,0.00016438,2]
[352920321,1739424645805,-1156.96,0.00016438,2]
[352920322,1739424645815,-500.0,0.00016438,2]
[352920323,1739424645825,-506.76784337,0.00016438,2]
[352920324,1739424645834,-500.0,0.00016438,2]
[352920325,1739424645844,-500.0,0.00016438,2]
[352920326,1739424645854,-500.0,0.00016438,2]
[352920327,1739424645870,-500.0,0.00016438,2]
[352920328,1739424645880,-500.0,0.00016438,2]
[352920329,1739424645891,-505.90333943,0.00016438,2]
[352920330,1739424645900,-500.0,0.00016438,2]
[352920331,1739424645912,-744.27,0.00016438,2]
[352920332,1739424645922,-151.0,0.00016438,2]
[352920333,1739424645933,-151.0,0.00016438,2]
[352920334,1739424645943,-151.0,0.00016438,2]
[352920335,1739424645953,-602.04,0.00016438,2]
[352920336,1739424645962,-249.176,0.00016438,2]
[352920337,1739424645972,-500.0,0.00016438,2]
[352920338,1739424645983,-1358.83,0.00016438,2]
[352920339,1739424645994,-500.0,0.00016438,2]
[352920340,1739424646004,-260.26621049,0.00016438,2]
[352920341,1739424646013,-500.0,0.00016438,2]
[352920342,1739424646023,-500.0,0.00016438,2]
[352920343,1739424646033,-500.0,0.00016438,2]
[352920344,1739424646042,-500.0,0.00016438,2]
[352920345,1739424646051,-500.0,0.00016438,2]
[352920346,1739424646061,-500.0,0.00016438,2]
[352920347,1739424646071,-2269.99,0.00016438,2]
[352920348,1739424646081,-500.0,0.00016438,2]
[352920349,1739424646090,-500.0,0.00016438,2]
[352920350,1739424646101,-500.0,0.00016438,2]
[352920352,1739424646111,-500.0,0.00016438,2]
[352920354,1739424646120,-500.0,0.00016438,2]
[352920356,1739424646130,-1227.16,0.00016438,2]
[352920358,1739424646140,-493.18896454,0.00016438,2]
[352920360,1739424646150,-500.0,0.00016438,2]
[352920362,1739424646160,-508.59214918,0.00016438,2]
[352920363,1739424646171,-500.0,0.00016438,2]
[352920365,1739424646181,-500.0,0.00016438,2]
[352920367,1739424646191,-500.0,0.00016438,2]
[352920369,1739424646201,-500.0,0.00016438,2]
[352920371,1739424646211,-1525.35,0.00016438,2]
[352920373,1739424646221,-1524.19,0.00016438,2]
[352920375,1739424646231,-500.0,0.00016438,2]
[352920377,1739424646241,-500.0,0.00016438,2]
[352920379,1739424646251,-151.0,0.00016438,2]
[352920381,1739424646262,-151.0,0.00016438,2]
[352920383,1739424646271,-500.0,0.00016438,2]
[352920385,1739424646281,-151.0,0.00016438,2]
[352920386,1739424646290,-216.558565,0.00016438,2]
[352920387,1739424646300,-500.0,0.00016438,2]
[352920388,1739424646310,-500.0,0.00016438,2]
[352920389,1739424646322,-500.0,0.00016438,2]
[352920390,1739424646333,-500.0,0.00016438,2]
[352920391,1739424646342,-1141.42,0.00016438,2]
[352920392,1739424646352,-1986.66,0.00016438,2]
[352920393,1739424646362,-500.0,0.00016438,2]
[352920394,1739424646371,-500.0,0.00016438,2]
[352920395,1739424646381,-1323.58,0.00016438,2]
[352920396,1739424646391,-505.36876175,0.00016438,2]
[352920397,1739424646400,-500.0,0.00016438,2]
[352920398,1739424646410,-151.0,0.00016438,2]
[352920399,1739424646419,-151.0,0.00016438,2]
[352920400,1739424646429,-500.0,0.00016438,2]
[352920401,1739424646439,-151.0,0.00016438,2]
[352920402,1739424646450,-565.17,0.00016438,2]
[352920403,1739424646459,-151.0,0.00016438,2]
[352920404,1739424646470,-501.89380752,0.00016438,2]
[352920405,1739424646490,-1298.85,0.00016438,2]
[352920406,1739424646500,-500.0,0.00016438,2]
[352920407,1739424646510,-500.0,0.00016438,2]
[352920408,1739424646520,-500.0,0.00016438,2]
[352920409,1739424646530,-1335.35,0.00016438,2]
[352920410,1739424646539,-503.88261519,0.00016438,2]
[352920411,1739424646549,-501.34854279,0.00016438,2]
[352920412,1739424646559,-964.8,0.00016438,2]
[352920413,1739424646568,-500.0,0.00016438,2]
[352920414,1739424646578,-1248.32,0.00016438,2]
[352920415,1739424646589,-500.0,0.00016438,2]
[352920416,1739424646599,-2071.6,0.00016438,2]
[352920417,1739424646608,-500.0,0.00016438,2]
[352920418,1739424646618,-504.26019195,0.00016438,2]
[352920419,1739424646628,-500.0,0.00016438,2]
[352920420,1739424646638,-500.0,0.00016438,2]
[352920421,1739424646648,-1029.54,0.00016438,2]
[352920422,1739424646658,-500.0,0.00016438,2]
[352920423,1739424646668,-500.0,0.00016438,2]
[352920424,1739424646678,-500.0,0.00016438,2]
[352920425,1739424646688,-500.0,0.00016438,2]
[352920426,1739424646701,-500.0,0.00016438,2]
[352920427,1739424646711,-443.99741173,0.00016438,2]
[352920428,1739424646721,-500.0,0.00016438,2]
[352920429,1739424646730,-500.0,0.00016438,2]
[352920430,1739424646740,-673.19,0.00016438,2]
[352920431,1739424646749,-1390.28,0.00016438,2]
[352920432,1739424646759,-500.0,0.00016438,2]
[352920433,1739424646768,-2301.71,0.00016438,2]
[352920434,1739424646779,-502.80383403,0.00016438,2]
[352920435,1739424646788,-500.0,0.00016438,2]
[352920436,1739424646799,-500.0,0.00016438,2]
[352920437,1739424646808,-1593.12,0.00016438,2]
[352920438,1739424646818,-1113.68,0.00016438,2]
[352920439,1739424646828,-751.18,0.00016438,2]
[352920440,1739424646837,-1406.79,0.00016438,2]
[352920441,1739424646847,-502.63451309,0.00016438,2]
[352920442,1739424646858,-151.0,0.00016438,2]
[352920443,1739424646872,-151.0,0.00016438,2]
[352920444,1739424646882,-151.0,0.00016438,2]
[352920445,1739424646892,-511.83,0.00016438,2]
[352920446,1739424646903,-151.0,0.00016438,2]
[352920447,1739424646914,-1647.31,0.00016438,2]
[352920448,1739424646925,-172.360684,0.00016438,2]
[352920449,1739424646935,-500.0,0.00016438,2]
[352920450,1739424646946,-500.0,0.00016438,2]
[352920451,1739424646957,-500.0,0.00016438,2]
[352920452,1739424646967,-500.0,0.00016438,2]
[352920453,1739424646976,-500.0,0.00016438,2]
[352920454,1739424646985,-500.0,0.00016438,2]
[352920455,1739424646995,-794.11,0.00016438,2]
[352920456,1739424647005,-1120.18,0.00016438,2]
[352920457,1739424647015,-2607.67,0.00016438,2]
[352920458,1739424647025,-500.0,0.00016438,2]
[352920459,1739424647035,-500.0,0.00016438,2]
[352920460,1739424647044,-180.35410455,0.00016438,2]
[352920461,1739424647095,-319.64589545,0.00016438,2]
[352920462,1739424647105,-1744.61,0.00016438,2]
[352920463,1739424647115,-508.67113656,0.00016438,2]
[352920464,1739424647124,-500.0,0.00016438,2]
[352920465,1739424647135,-1687.8,0.00016438,2]
[352920466,1739424647146,-504.54334439,0.00016438,2]
[352920467,1739424647155,-151.0,0.00016438,2]
[352920468,1739424647165,-500.0,0.00016438,2]
[352920469,1739424647175,-151.0,0.00016438,2]
[352920470,1739424647185,-151.0,0.00016438,2]
[352920471,1739424647195,-151.0,0.00016438,2]
[352920472,1739424647206,-500.0,0.00016438,2]
[352920473,1739424647215,-151.0,0.00016438,2]
[352920474,1739424647225,-500.0,0.00016438,2]
[352920475,1739424647236,-692.82,0.00016438,2]
[352920476,1739424647246,-151.0,0.00016438,2]
[352920477,1739424647256,-500.0,0.00016438,2]
[352920478,1739424647265,-151.0,0.00016438,2]
[352920479,1739424647275,-151.0,0.00016438,2]
[352920480,1739424647285,-151.0,0.00016438,2]
[352920481,1739424647295,-500.0,0.00016438,2]
[352920482,1739424647306,-500.0,0.00016438,2]
[352920483,1739424647317,-151.0,0.00016438,2]
[352920484,1739424647327,-151.0,0.00016438,2]
[352920485,1739424647338,-151.0,0.00016438,2]
[352920486,1739424647349,-151.0,0.00016438,2]
[352920487,1739424647360,-500.0,0.00016438,2]
[352920488,1739424647370,-175.432459,0.00016438,2]
[352920489,1739424647380,-500.0,0.00016438,2]
[352920490,1739424647390,-500.0,0.00016438,2]
[352920491,1739424647399,-500.0,0.00016438,2]
[352920492,1739424647409,-1180.51,0.00016438,2]
[352920493,1739424647420,-1285.65,0.00016438,2]
[352920494,1739424647429,-1768.51,0.00016438,2]
[352920495,1739424647439,-903.58,0.00016438,2]
[352920496,1739424647449,-536.3,0.00016438,2]
[352920497,1739424647458,-500.0,0.00016438,2]
[352920498,1739424647468,-855.21,0.00016438,2]
[352920499,1739424647479,-500.0,0.00016438,2]
[352920500,1739424647488,-2072.5,0.00016438,2]
[352920501,1739424647498,-498.43552171,0.00016438,2]
[352920502,1739424647508,-448.44915874,0.00016438,2]
[352920503,1739424647518,-500.0,0.00016438,2]
[352920504,1739424647528,-1263.89,0.00016438,2]
[352920505,1739424647538,-1200.0,0.00016438,2]
[352920506,1739424647547,-976.78,0.00016438,2]
[352920507,1739424647558,-545.41446505,0.00016438,2]
[352920508,1739424647568,-500.0,0.00016438,2]
[352920509,1739424647578,-1342.56,0.00016438,2]
[352920510,1739424647589,-1109.73,0.00016438,2]
[352920511,1739424647599,-500.0,0.00016438,2]
[352920512,1739424647609,-1690.26,0.00016438,2]
[352920513,1739424647621,-500.0,0.00016438,2]
[352920514,1739424647633,-500.0,0.00016438,2]
[352920515,1739424647644,-500.0,0.00016438,2]
[352920516,1739424647653,-501.74047751,0.00016438,2]
[352920517,1739424647663,-615.11,0.00016438,2]
[352920518,1739424647672,-500.0,0.00016438,2]
[352920519,1739424647681,-151.0,0.00016438,2]
[352920520,1739424647691,-1978.49,0.00016438,2]
[352920521,1739424647700,-152.423402,0.00016438,2]
[352920522,1739424647710,-1362.38,0.00016438,2]
[352920523,1739424647721,-1288.99,0.00016438,2]
[352920524,1739424647731,-1237.99,0.00016438,2]
[352920525,1739424647741,-500.0,0.00016438,2]
[352920526,1739424647751,-500.0,0.00016438,2]
[352920527,1739424647760,-500.0,0.00016438,2]
[352920528,1739424647770,-500.0,0.00016438,2]
[352920529,1739424647781,-1362.8,0.00016438,2]
[352920530,1739424647962,-1136.76,0.00016438,2]
[352920531,1739424647974,-1114.12,0.00016438,2]
[352920532,1739424647984,-1467.6,0.00016438,2]
[352920533,1739424647993,-500.0,0.00016438,2]
[352920534,1739424648003,-151.0,0.00016438,2]
[352920535,1739424648013,-151.0,0.00016438,2]
[352920536,1739424648022,-151.0,0.00016438,2]
[352920537,1739424648033,-500.0,0.00016438,2]
[352920538,1739424648043,-151.0,0.00016438,2]
[352920539,1739424648053,-151.0,0.00016438,2]
[352920540,1739424648064,-151.0,0.00016438,2]
[352920541,1739424648074,-151.0,0.00016438,2]
[352920542,1739424648084,-562.99,0.00016438,2]
[352920543,1739424648094,-151.0,0.00016438,2]
[352920544,1739424648104,-1037.58,0.00016438,2]
[352920545,1739424648114,-2183.63,0.00016438,2]
[352920546,1739424648124,-974.65,0.00016438,2]
[352920547,1739424648133,-500.0,0.00016438,2]
[352920548,1739424648142,-500.0,0.00016438,2]
[352920549,1739424648152,-500.0,0.00016438,2]
[352920550,1739424648163,-500.0,0.00016438,2]
[352920551,1739424648172,-2066.94,0.00016438,2]
[352920552,1739424648181,-501.6502492,0.00016438,2]
[352920553,1739424648191,-500.0,0.00016438,2]
[352920554,1739424648200,-500.0,0.00016438,2]
[352920555,1739424648210,-500.0,0.00016438,2]
[352920556,1739424648220,-317.58193462,0.00016438,2]
[352920557,1739424648229,-685.73,0.00016438,2]
[352920558,1739424648239,-765.4,0.00016438,2]
[352920559,1739424648250,-500.0,0.00016438,2]
[352920560,1739424648260,-688.93,0.00016438,2]
[352920561,1739424648271,-1283.72,0.00016438,2]
[352920562,1739424648281,-1164.27,0.00016438,2]
[352920563,1739424648290,-500.0,0.00016438,2]